fUST/lending_fUST_20240725
["ID","MTS","AMOUNT","RATE_DAILY","PERIOD"]
[333166842,1721903463439,-500.0,0.00013972,2]
[333166843,1721903463448,-500.0,0.00013972,2]
[333166844,1721903463457,-500.0,0.00013972,2]
[333166845,1721903463467,-500.0,0.00013972,2]
[333166846,1721903463477,-500.0,0.00013972,2]
[333166847,1721903463486,-500.0,0.00013972,2]
[333166848,1721903463496,-1621.69,0.00013972,2]
[333166849,1721903463505,-500.0,0.00013972,2]
[333166850,1721903463515,-796.86,0.00013972,2]
[333166851,1721903463524,-500.0,0.00013972,2]
[333166852,1721903463535,-500.0,0.00013972,2]
[333166853,1721903463545,-500.0,0.00013972,2]
[333166854,1721903463555,-500.0,0.00013972,2]
[333166855,1721903463565,-866.76,0.00013972,2]
[333166856,1721903463574,-500.0,0.00013972,2]
[333166857,1721903463584,-500.0,0.00013972,2]
[333166858,1721903463596,-500.0,0.00013972,2]
[333166859,1721903463606,-500.0,0.00013972,2]
[333166860,1721903463619,-500.0,0.00013972,2]
[333166861,1721903463628,-500.0,0.00013972,2]
[333166862,1721903463637,-500.0,0.00013972,2]
[333166863,1721903463647,-771.63,0.00013972,2]
[333166864,1721903463660,-1728.47,0.00013972,2]
[333166865,1721903463670,-500.0,0.00013972,2]
[333166866,1721903463679,-500.0,0.00013972,2]
[333166867,1721903463690,-515.31,0.00013972,2]
[333166868,1721903463702,-500.0,0.00013972,2]
[333166869,1721903463712,-500.0,0.00013972,2]
[333166870,1721903463722,-1074.9,0.00013972,2]
[333166871,1721903463732,-500.0,0.00013972,2]
[333166872,1721903463741,-1665.42,0.00013972,2]
[333166873,1721903463752,-524.94180176,0.00013972,2]
[333166874,1721903463761,-500.0,0.00013972,2]
[333166875,1721903463771,-1777.08,0.00013972,2]
[333166876,1721903463781,-1119.89,0.00013972,2]
[333166877,1721903463791,-500.0,0.00013972,2]
[333166878,1721903463801,-500.0,0.00013972,2]
[333166879,1721903463810,-500.0,0.00013972,2]
[333166880,1721903463821,-500.0,0.00013972,2]
[333166881,1721903463831,-537.56536592,0.00013972,2]
[333166882,1721903463842,-500.0,0.00013972,2]
[333166883,1721903463851,-500.0,0.00013972,2]
[333166884,1721903463860,-500.0,0.00013972,2]
[333166885,1721903463870,-500.0,0.00013972,2]
[333166886,1721903463879,-500.0,0.00013972,2]
[333166887,1721903463889,-861.02,0.00013972,2]
[333166888,1721903463900,-500.0,0.00013972,2]
[333166889,1721903463909,-500.0,0.00013972,2]
[333166890,1721903463919,-500.0,0.00013972,2]
[333166891,1721903463928,-1196.83,0.00013972,2]
[333166892,1721903463940,-500.0,0.00013972,2]
[333166893,1721903463949,-500.0,0.00013972,2]
[333166894,1721903463960,-657.14,0.00013972,2]
[333166895,1721903463969,-469.95270067,0.00013972,2]
[333166896,1721903463979,-500.0,0.00013972,2]
[333166897,1721903463989,-500.0,0.00013972,2]
[333166898,1721903463998,-500.0,0.00013972,2]
[333166899,1721903464008,-500.0,0.00013972,2]
[333166900,1721903464018,-510.92443114,0.00013972,2]
[333166901,1721903464028,-1643.51,0.00013972,2]
[333166902,1721903464037,-500.0,0.00013972,2]
[333166903,1721903464047,-1531.17,0.00013972,2]
[333166904,1721903464056,-500.0,0.00013972,2]
[333166905,1721903464066,-168.59528304,0.00013972,2]
[333166906,1721903464186,-500.0,0.00013972,2]
[333166907,1721903464196,-500.0,0.00013972,2]
[333166908,1721903464206,-500.0,0.00013972,2]
[333166909,1721903464216,-500.0,0.00013972,2]
[333166910,1721903464226,-500.0,0.00013972,2]
[333166911,1721903464236,-500.0,0.00013972,2]
[333166912,1721903464246,-500.0,0.00013972,2]
[333166913,1721903464255,-500.0,0.00013972,2]
[333166914,1721903464265,-500.0,0.00013972,2]
[333166915,1721903464274,-500.0,0.00013972,2]
[333166916,1721903464284,-500.0,0.00013972,2]
[333166917,1721903464293,-500.0,0.00013972,2]
[333166918,1721903464303,-500.0,0.00013972,2]
[333166919,1721903464312,-625.79,0.00013972,2]
[333166920,1721903464322,-501.75326931,0.00013972,2]
[333166921,1721903464332,-909.97,0.00013972,2]
[333166922,1721903464344,-500.0,0.00013972,2]
[333166923,1721903464354,-500.0,0.00013972,2]
[333166924,1721903464363,-500.0,0.00013972,2]
[333166925,1721903464372,-855.46,0.00013972,2]
[333166926,1721903464383,-1306.38,0.00013972,2]
[333166927,1721903464392,-500.0,0.00013972,2]
[333166928,1721903464402,-341.72143014,0.00013972,2]
[333166929,1721903464412,-500.0,0.00013972,2]
[333166930,1721903464421,-500.0,0.00013972,2]
[333166931,1721903464431,-500.0,0.00013972,2]
[333166932,1721903464440,-500.0,0.00013972,2]
[333166933,1721903464451,-761.46,0.00013972,2]
[333166934,1721903464460,-535.40852555,0.00013972,2]
[333166935,1721903464470,-500.0,0.00013972,2]
[333166936,1721903464480,-500.0,0.00013972,2]
[333166937,1721903464489,-606.65,0.00013972,2]
[333166938,1721903464499,-1121.12,0.00013972,2]
[333166939,1721903464509,-500.0,0.00013972,2]
[333166940,1721903464519,-500.0,0.00013972,2]
[333166941,1721903464530,-500.0,0.00013972,2]
[333166942,1721903464540,-500.0,0.00013972,2]
[333166943,1721903464550,-500.0,0.00013972,2]
[333166944,1721903464560,-500.0,0.00013972,2]
[333166945,1721903464570,-500.0,0.00013972,2]
[333166946,1721903464579,-500.0,0.00013972,2]
[333166947,1721903464591,-500.0,0.00013972,2]
[333166948,1721903464601,-1396.42,0.00013972,2]
[333166949,1721903464611,-500.0,0.00013972,2]
[333166950,1721903464624,-1958.89,0.00013972,2]
[333166951,1721903464634,-257.77649434,0.00013972,2]
[333166952,1721903464645,-500.0,0.00013972,2]
[333166953,1721903464656,-500.0,0.00013972,2]
[333166954,1721903464667,-500.0,0.00013972,2]
[333166955,1721903464677,-541.52,0.00013972,2]
[333166956,1721903464686,-500.0,0.00013972,2]
[333166957,1721903464697,-515.19570071,0.00013972,2]
[333166958,1721903464707,-500.0,0.00013972,2]
[333166959,1721903464716,-500.0,0.00013972,2]
[333166960,1721903464726,-522.99570737,0.00013972,2]
[333166961,1721903464736,-906.88,0.00013972,2]
[333166962,1721903464746,-500.0,0.00013972,2]
[333166963,1721903464756,-500.0,0.00013972,2]
[333166964,1721903464766,-500.0,0.00013972,2]
[333166965,1721903464776,-500.0,0.00013972,2]
[333166966,1721903464785,-500.0,0.00013972,2]
[333166967,1721903464795,-1294.56,0.00013972,2]
[333166968,1721903464806,-500.0,0.00013972,2]
[333166969,1721903464816,-1159.7,0.00013972,2]
[333166970,1721903464826,-500.0,0.00013972,2]
[333166971,1721903464835,-500.0,0.00013972,2]
[333166972,1721903464854,-1267.61,0.00013972,2]
[333166973,1721903464865,-669.42,0.00013972,2]
[333166974,1721903464875,-500.0,0.00013972,2]
[333166975,1721903464886,-500.0,0.00013972,2]
[333166976,1721903464896,-684.44,0.00013972,2]
[333166977,1721903464906,-500.0,0.00013972,2]
[333166978,1721903464916,-502.47574919,0.00013972,2]
[333166979,1721903464926,-3575.55,0.00013972,2]
[333166980,1721903464936,-500.0,0.00013972,2]
[333166981,1721903464947,-500.0,0.00013972,2]
[333166982,1721903464956,-500.0,0.00013972,2]
[333166983,1721903464966,-574.62,0.00013972,2]
[333166984,1721903464977,-500.0,0.00013972,2]
[333166985,1721903464987,-500.0,0.00013972,2]
[333166986,1721903464997,-500.0,0.00013972,2]
[333166987,1721903465007,-500.0,0.00013972,2]
[333166988,1721903465016,-500.0,0.00013972,2]
[333166989,1721903465025,-500.0,0.00013972,2]
[333166990,1721903465035,-500.0,0.00013972,2]
[333166991,1721903465044,-1126.81,0.00013972,2]
[333166992,1721903465053,-500.0,0.00013972,2]
[333166993,1721903465062,-500.0,0.00013972,2]
[333166994,1721903465071,-500.0,0.00013972,2]
[333166995,1721903465080,-500.0,0.00013972,2]
[333166996,1721903465091,-1035.0,0.00013972,2]
[333166997,1721903465100,-500.0,0.00013972,2]
[333166998,1721903465109,-500.0,0.00013972,2]
[333166999,1721903465118,-699.74,0.00013972,2]
[333167000,1721903465127,-500.0,0.00013972,2]
[333167001,1721903465136,-500.0,0.00013972,2]
[333167002,1721903465145,-641.12,0.00013972,2]
[333167003,1721903465154,-500.0,0.00013972,2]
[333167004,1721903465163,-848.22,0.00013972,2]
[333167005,1721903465173,-500.0,0.00013972,2]
[333167006,1721903465182,-510.41194972,0.00013972,2]
[333167007,1721903465191,-3067.77,0.00013972,2]
[333167008,1721903465200,-500.0,0.00013972,2]
[333167009,1721903465210,-500.0,0.00013972,2]
[333167010,1721903465220,-930.61,0.00013972,2]
[333167011,1721903465229,-500.0,0.00013972,2]
[333167012,1721903465238,-500.0,0.00013972,2]
[333167013,1721903465249,-500.0,0.00013972,2]
[333167014,1721903465258,-500.0,0.00013972,2]
[333167015,1721903465268,-502.58801939,0.00013972,2]
[333167016,1721903465278,-500.0,0.00013972,2]
[333167017,1721903465287,-1143.86,0.00013972,2]
[333167018,1721903465297,-500.0,0.00013972,2]
[333167019,1721903465307,-628.78,0.00013972,2]
[333167020,1721903465317,-2374.29,0.00013972,2]
[333167021,1721903465327,-500.0,0.00013972,2]
[333167022,1721903465336,-500.0,0.00013972,2]
[333167023,1721903465348,-539.92,0.00013972,2]
[333167024,1721903465357,-1342.05,0.00013972,2]
[333167025,1721903465367,-500.0,0.00013972,2]
[333167026,1721903465376,-500.0,0.00013972,2]
[333167027,1721903465386,-2549.56,0.00013972,2]
[333167028,1721903465395,-500.0,0.00013972,2]
[333167029,1721903465405,-500.0,0.00013972,2]
[333167030,1721903465414,-500.0,0.00013972,2]
[333167031,1721903465424,-500.0,0.00013972,2]
[333167032,1721903465433,-254.86600932,0.00013972,2]
[333167033,1721903465443,-500.0,0.00013972,2]
[333167034,1721903465452,-500.0,0.00013972,2]
[333167035,1721903465461,-344.18477793,0.00013972,2]
[333167036,1721903465471,-500.0,0.00013972,2]
[333167037,1721903465480,-500.0,0.00013972,2]
[333167038,1721903465489,-3906.83,0.00013972,2]
[333167039,1721903465498,-2120.77,0.00013972,2]
[333167040,1721903465508,-505.34550588,0.00013972,2]
[333167041,1721903465517,-500.0,0.00013972,2]
[333167042,1721903465527,-500.0,0.00013972,2]
[333167043,1721903465536,-1024.01,0.00013972,2]
[333167044,1721903465545,-500.0,0.00013972,2]
[333167045,1721903465555,-500.0,0.00013972,2]
[333167046,1721903465564,-500.0,0.00013972,2]
[333167047,1721903465573,-500.0,0.00013972,2]
[333167048,1721903465583,-500.0,0.00013972,2]
[333167049,1721903465595,-1808.43,0.00013972,2]
[333167050,1721903465605,-3428.0,0.00013972,2]
[333167051,1721903465614,-500.0,0.00013972,2]
[333167052,1721903465628,-500.0,0.00013972,2]
[333167053,1721903465639,-500.0,0.00013972,2]
[333167054,1721903465648,-500.0,0.00013972,2]
[333167055,1721903465658,-680.71,0.00013972,2]
[333167056,1721903465669,-2055.85,0.00013972,2]
[333167057,1721903465679,-500.0,0.00013972,2]
[333167058,1721903465688,-2304.9,0.00013972,2]
[333167059,1721903465699,-594.60172005,0.00013972,2]
[333167060,1721903465709,-500.0,0.00013972,2]
[333167061,1721903465719,-500.0,0.00013972,2]
[333167062,1721903465729,-500.0,0.00013972,2]
[333167063,1721903465739,-500.0,0.00013972,2]
[333167064,1721903465749,-368.76987272,0.00013972,2]
[333167065,1721903465758,-500.0,0.00013972,2]
[333167066,1721903465768,-963.75,0.00013972,2]
[333167067,1721903465777,-500.0,0.00013972,2]
[333167068,1721903465786,-500.0,0.00013972,2]
[333167069,1721903465796,-11005.26,0.00013972,2]
[333167070,1721903465805,-500.0,0.00013972,2]
[333167071,1721903465814,-500.0,0.00013972,2]
[333167072,1721903465824,-1209.35,0.00013972,2]
[333167073,1721903465833,-12427.77,0.00013972,2]
[333167074,1721903465847,-500.0,0.00013972,2]
[333167075,1721903465856,-500.0,0.00013972,2]
[333167076,1721903465865,-1208.56,0.00013972,2]
[333167077,1721903465875,-460.45151269,0.00013972,2]
[333167078,1721903465884,-2111.93,0.00013972,2]
[333167079,1721903465894,-626.59,0.00013972,2]
[333167080,1721903465904,-500.0,0.00013972,2]
[333167081,1721903465914,-500.0,0.00013972,2]
[333167082,1721903465925,-500.0,0.00013972,2]
[333167083,1721903465935,-727.67,0.00013972,2]
[333167084,1721903465945,-500.0,0.00013972,2]
[333167085,1721903465954,-500.0,0.00013972,2]
[333167086,1721903465964,-296.6971912,0.00013972,2]
[333167087,1721903465973,-500.0,0.00013972,2]
[333167088,1721903465983,-5529.58,0.00013972,2]
[333167089,1721903465992,-6064.76,0.00013972,2]
[333167090,1721903466002,-500.0,0.00013972,2]
[333167091,1721903466012,-500.0,0.00013972,2]
[333167092,1721903466022,-500.0,0.00013972,2]
[333167093,1721903466031,-2199.81,0.00013972,2]
[333167094,1721903466041,-4344.71,0.00013972,2]
[333167095,1721903466050,-152.82767192,0.00013972,2]
[333167096,1721903466060,-500.0,0.00013972,2]
[333167097,1721903466069,-500.0,0.00013972,2]
[333167098,1721903466079,-1989.31,0.00013972,2]
[333167099,1721903466089,-2348.89,0.00013972,2]
[333167100,1721903466100,-500.0,0.00013972,2]
[333167101,1721903466109,-1666.3,0.00013972,2]
[333167102,1721903466118,-500.0,0.00013972,2]
[333167103,1721903466128,-500.0,0.00013972,2]
[333167104,1721903466137,-500.0,0.00013972,2]
[333167105,1721903466146,-232.48993703,0.00013972,2]
[333167106,1721903466156,-231.47554272,0.00013972,2]
[333167107,1721903466165,-540.32,0.00013972,2]
[333167108,1721903466175,-500.0,0.00013972,2]
[333167109,1721903466184,-1108.5,0.00013972,2]
[333167110,1721903466194,-2158.36,0.00013972,2]
[333167111,1721903466204,-500.0,0.00013972,2]
[333167112,1721903466213,-500.0,0.00013972,2]
[333167113,1721903466222,-504.53112401,0.00013972,2]
[333167114,1721903466231,-500.0,0.00013972,2]
[333167115,1721903466241,-500.0,0.00013972,2]
[333167116,1721903466250,-500.0,0.00013972,2]
[333167117,1721903466260,-1674.12,0.00013972,2]
[333167118,1721903466270,-500.0,0.00013972,2]
[333167119,1721903466280,-519.27,0.00013972,2]
[333167120,1721903466290,-500.0,0.00013972,2]
[333167121,1721903466300,-500.0,0.00013972,2]
[333167122,1721903466309,-500.0,0.00013972,2]
[333167123,1721903466319,-1060.24,0.00013972,2]
[333167124,1721903466328,-500.0,0.00013972,2]
[333167125,1721903466337,-500.0,0.00013972,2]
[333167126,1721903466348,-1312.86,0.00013972,2]
[333167127,1721903466358,-1842.38,0.00013972,2]
[333167128,1721903466367,-500.0,0.00013972,2]
[333167129,1721903466377,-4068.01,0.00013972,2]
[333167130,1721903466491,-1545.79,0.00013972,2]
[333167131,1721903466502,-500.0,0.00013972,2]
[333167132,1721903466512,-556.65,0.00013972,2]
[333167133,1721903466522,-986.16,0.00013972,2]
[333167134,1721903466532,-1473.03,0.00013972,2]
[333167135,1721903466542,-500.0,0.00013972,2]
[333167136,1721903466551,-500.0,0.00013972,2]
[333167137,1721903466561,-500.0,0.00013972,2]
[333167138,1721903466570,-500.0,0.00013972,2]
[333167139,1721903466580,-501.64391402,0.00013972,2]
[333167140,1721903466591,-500.0,0.00013972,2]
[333167141,1721903466601,-500.0,0.00013972,2]
[333167142,1721903466611,-863.94,0.00013972,2]
[333167143,1721903466629,-500.0,0.00013972,2]
[333167144,1721903466638,-500.0,0.00013972,2]
[333167145,1721903466647,-682.66,0.00013972,2]
[333167146,1721903466657,-500.0,0.00013972,2]
[333167147,1721903466667,-500.0,0.00013972,2]
[333167148,1721903466676,-2574.62,0.00013972,2]
[333167149,1721903466685,-1194.37,0.00013972,2]
[333167150,1721903466695,-500.0,0.00013972,2]
[333167151,1721903466706,-500.0,0.00013972,2]
[333167152,1721903466716,-500.0,0.00013972,2]
[333167153,1721903466726,-500.0,0.00013972,2]
[333167154,1721903466735,-534.62,0.00013972,2]
[333167155,1721903466745,-500.0,0.00013972,2]
[333167156,1721903466755,-500.0,0.00013972,2]
[333167157,1721903466766,-1622.04,0.00013972,2]
[333167158,1721903466775,-502.05208908,0.00013972,2]
[333167159,1721903466786,-2119.91,0.00013972,2]
[333167160,1721903466796,-1696.24,0.00013972,2]
[333167161,1721903466805,-500.0,0.00013972,2]
[333167162,1721903466814,-485.65108768,0.00013972,2]
[333167163,1721903466824,-154.71377951,0.00014,2]
[333167164,1721903466833,-28057.77088763,0.00014,2]
[333167165,1721903466844,-151.0,0.00014,2]
[333167166,1721903466853,-150.112233,0.00014,2]
[333167167,1721903466864,-600.0,0.00014,2]
[333167168,1721903466873,-150.112233,0.000141,2]
[333167169,1721903466882,-150.112233,0.000141,2]
[333167170,1721903466892,-771.8042138,0.00014109,2]
[333167171,1721903466901,-1000.0,0.00014113,2]
[333167172,1721903466911,-3200.0,0.00014137,2]
[333167173,1721903466921,-426.092,0.00014137,2]
[333167174,1721903466931,-835.347439,0.00014161,2]
[333167175,1721903466941,-754.700765,0.00014161,2]
[333167176,1721903466951,-184.253258,0.00014161,2]
[333167177,1721903466961,-621.3939468,0.000142,2]
[333167178,1721903466971,-150.112233,0.000142,2]
[333167179,1721903466981,-160.0,0.00014243,3]
[333167180,1721903466990,-307.62399407,0.00014243,5]
[333167181,1721903467000,-151.0,0.00014246,2]
[333167182,1721903467009,-500.0,0.00014246,2]
[333167183,1721903467019,-500.0,0.00014246,2]
[333167184,1721903467029,-165.03651191,0.00014246,2]
[333167185,1721903467040,-1385.7,0.00014246,2]
[333167186,1721903467050,-500.0,0.00014246,2]
[333167187,1721903467060,-500.0,0.00014246,2]
[333167188,1721903467070,-500.0,0.00014246,2]
[333167189,1721903467080,-500.0,0.00014246,2]
[333167190,1721903467091,-632.59,0.00014246,2]
[333167191,1721903467101,-503.55675201,0.00014246,2]
[333167192,1721903467110,-589.53717494,0.00014246,2]
[333167193,1721903467120,-500.0,0.00014246,2]
[333167194,1721903467129,-500.0,0.00014246,2]
[333167195,1721903467137,-500.0,0.00014246,2]
[333167196,1721903467147,-696.85,0.00014246,2]
[333167197,1721903467157,-500.0,0.00014246,2]
[333167198,1721903467167,-500.0,0.00014246,2]
[333167199,1721903467176,-500.0,0.00014246,2]
[333167200,1721903467186,-500.0,0.00014246,2]
[333167201,1721903467195,-623.48897526,0.00014246,2]
[333167202,1721903467205,-500.0,0.00014246,2]
[333167203,1721903467214,-500.0,0.00014246,2]
[333167204,1721903467224,-507.86488783,0.00014246,2]
[333167205,1721903467233,-500.0,0.00014246,2]
[333167206,1721903467243,-860.04,0.00014246,2]
[333167207,1721903467253,-500.0,0.00014246,2]
[333167208,1721903467263,-500.0,0.00014246,2]
[333167209,1721903467272,-500.0,0.00014246,2]
[333167210,1721903467282,-500.0,0.00014246,2]
[333167211,1721903467292,-500.0,0.00014246,2]
[333167212,1721903467302,-333.85,0.00014246,2]
[333167213,1721903467311,-500.0,0.00014246,2]
[333167214,1721903467321,-706.99,0.00014246,2]
[333167215,1721903467331,-1435.98,0.00014246,2]
[333167216,1721903467343,-500.0,0.00014246,2]
[333167217,1721903467352,-358.4536143,0.00014246,2]
[333167218,1721903467362,-500.0,0.00014246,2]
[333167219,1721903467371,-503.3672768,0.00014246,2]
[333167220,1721903467380,-500.0,0.00014246,2]
[333167221,1721903467390,-500.0,0.00014246,2]
[333167222,1721903467401,-500.0,0.00014246,2]
[333167223,1721903467410,-500.0,0.00014246,2]
[333167224,1721903467421,-500.0,0.00014246,2]
[333167225,1721903467431,-563.50396674,0.00014246,2]
[333167226,1721903467441,-500.0,0.00014246,2]
[333167227,1721903467451,-500.0,0.00014246,2]
[333167228,1721903467461,-500.0,0.00014246,2]
[333167229,1721903467472,-500.0,0.00014246,2]
[333167230,1721903467481,-500.0,0.00014246,2]
[333167231,1721903467490,-838.97,0.00014246,2]
[333167232,1721903467501,-300.36201136,0.00014246,2]
[333167233,1721903467511,-189.30105114,0.00014246,2]
[333167234,1721903467520,-500.0,0.00014246,2]
[333167235,1721903467530,-500.0,0.00014246,2]
[333167236,1721903467540,-500.0,0.00014246,2]
[333167237,1721903467549,-500.0,0.00014246,2]
[333167238,1721903467559,-500.0,0.00014246,2]
[333167239,1721903467569,-500.0,0.00014246,2]
[333167240,1721903467578,-500.0,0.00014246,2]
[333167241,1721903467588,-500.0,0.00014246,2]
[333167242,1721903467600,-500.0,0.00014246,2]
[333167243,1721903467609,-500.0,0.00014246,2]
[333167244,1721903467623,-500.0,0.00014246,2]
[333167245,1721903467633,-500.0,0.00014246,2]
[333167246,1721903467642,-500.0,0.00014246,2]
[333167247,1721903467652,-1727.83,0.00014246,2]
[333167248,1721903467662,-500.0,0.00014246,2]
[333167249,1721903467672,-581.54,0.00014246,2]
[333167250,1721903467681,-1170.86,0.00014246,2]
[333167251,1721903467694,-500.0,0.00014246,2]
[333167252,1721903467704,-500.0,0.00014246,2]
[333167253,1721903467715,-500.0,0.00014246,2]
[333167254,1721903467724,-247.85820003,0.00014246,2]
[333167255,1721903467735,-500.0,0.00014246,2]
[333167256,1721903467746,-1552.18,0.00014246,2]
[333167257,1721903467757,-500.0,0.00014246,2]
[333167258,1721903467767,-1041.69,0.00014246,2]
[333167259,1721903467776,-500.0,0.00014246,2]
[333167260,1721903467786,-660.14,0.00014246,2]
[333167261,1721903467796,-517.36,0.00014246,2]
[333167262,1721903467807,-500.0,0.00014246,2]
[333167263,1721903467817,-500.0,0.00014246,2]
[333167264,1721903467828,-500.0,0.00014246,2]
[333167265,1721903467838,-500.0,0.00014246,2]
[333167266,1721903467849,-507.67274744,0.00014246,2]
[333167267,1721903467859,-500.0,0.00014246,2]
[333167268,1721903467870,-500.0,0.00014246,2]
[333167269,1721903467880,-500.0,0.00014246,2]
[333167270,1721903467889,-500.0,0.00014246,2]
[333167271,1721903467901,-500.0,0.00014246,2]
[333167272,1721903467911,-500.0,0.00014246,2]
[333167273,1721903467922,-944.25,0.00014246,2]
[333167274,1721903467931,-1665.11,0.00014246,2]
[333167275,1721903467941,-502.52639465,0.00014246,2]
[333167276,1721903467952,-517.80535825,0.00014246,2]
[333167277,1721903467963,-500.0,0.00014246,2]
[333167278,1721903467973,-500.0,0.00014246,2]
[333167279,1721903467983,-500.0,0.00014246,2]
[333167280,1721903467993,-500.0,0.00014246,2]
[333167281,1721903468004,-500.0,0.00014246,2]
[333167282,1721903468014,-500.0,0.00014246,2]
[333167283,1721903468024,-500.0,0.00014246,2]
[333167284,1721903468036,-500.0,0.00014246,2]
[333167285,1721903468047,-500.0,0.00014246,2]
[333167286,1721903468057,-500.0,0.00014246,2]
[333167287,1721903468067,-500.0,0.00014246,2]
[333167288,1721903468077,-500.0,0.00014246,2]
[333167289,1721903468087,-500.0,0.00014246,2]
[333167290,1721903468099,-500.0,0.00014246,2]
[333167291,1721903468111,-500.0,0.00014246,2]
[333167292,1721903468120,-500.0,0.00014246,2]
[333167293,1721903468129,-500.0,0.00014246,2]
[333167294,1721903468139,-1836.88,0.00014246,2]
[333167295,1721903468148,-500.0,0.00014246,2]
[333167296,1721903468158,-553.86095584,0.00014246,2]
[333167297,1721903468167,-500.0,0.00014246,2]
[333167298,1721903468177,-500.0,0.00014246,2]
[333167299,1721903468187,-500.0,0.00014246,2]
[333167300,1721903468196,-535.9321805,0.00014246,2]
[333167301,1721903468206,-515.9,0.00014246,2]
[333167302,1721903468215,-500.0,0.00014246,2]
[333167303,1721903468224,-500.0,0.00014246,2]
[333167304,1721903468233,-500.0,0.00014246,2]
[333167305,1721903468243,-500.0,0.00014246,2]
[333167306,1721903468252,-684.43,0.00014246,2]
[333167307,1721903468262,-500.0,0.00014246,2]
[333167308,1721903468272,-1216.64,0.00014246,2]
[333167309,1721903468282,-500.0,0.00014246,2]
[333167310,1721903468292,-500.0,0.00014246,2]
[333167311,1721903468302,-514.82576949,0.00014246,2]
[333167312,1721903468311,-1186.39,0.00014246,2]
[333167313,1721903468321,-500.0,0.00014246,2]
[333167314,1721903468330,-500.0,0.00014246,2]
[333167315,1721903468340,-801.21,0.00014246,2]
[333167316,1721903468350,-500.0,0.00014246,2]
[333167317,1721903468360,-500.0,0.00014246,2]
[333167318,1721903468369,-500.0,0.00014246,2]
[333167319,1721903468379,-581.30874109,0.00014246,2]
[333167320,1721903468389,-500.0,0.00014246,2]
[333167321,1721903468398,-500.0,0.00014246,2]
[333167322,1721903468408,-500.0,0.00014246,2]
[333167323,1721903468417,-500.0,0.00014246,2]
[333167324,1721903468428,-500.0,0.00014246,2]
[333167325,1721903468437,-1621.69,0.00014246,2]
[333167326,1721903468447,-504.25201991,0.00014246,2]
[333167327,1721903468457,-796.86,0.00014246,2]
[333167328,1721903468467,-500.0,0.00014246,2]
[333167329,1721903468476,-502.8734352,0.00014246,2]
[333167330,1721903468486,-500.0,0.00014246,2]
[333167331,1721903468496,-500.0,0.00014246,2]
[333167332,1721903468505,-866.76,0.00014246,2]
[333167333,1721903468514,-500.0,0.00014246,2]
[333167334,1721903468524,-500.0,0.00014246,2]
[333167335,1721903468534,-500.0,0.00014246,2]
[333167336,1721903468633,-500.0,0.00014246,2]
[333167337,1721903468651,-500.0,0.00014246,2]
[333167338,1721903468663,-500.0,0.00014246,2]
[333167339,1721903468672,-509.71574384,0.00014246,2]
[333167340,1721903468681,-771.63,0.00014246,2]
[333167341,1721903468691,-1728.47,0.00014246,2]